[Event "Lithuanian Chess League 2021"]
[Site "Various cities"]
[Date "2021.05.14"]
[Round "5.16"]
[White "Maziukas, Kasparas"]
[Black "Klimciauskas, Domantas"]
[Result "1/2-1/2"]
[WhiteElo "1870"]
[BlackElo "2175"]
[PlyCount "118"]
[TimeControl "90/40+30:0"]
[WhiteClock "0:11:23"]
[BlackClock "1:19:09"]

1. d4 {[%emt 0:00:02]} g6 {[%emt 0:00:05]} 2. c4 {[%emt 0:00:27]} Bg7 {[%emt 0:
00:05]} 3. Nc3 {[%emt 0:00:05]} d6 {[%emt 0:00:20]} 4. e4 {[%emt 0:00:11]} e5 {
[%emt 0:00:09]} 5. dxe5 {[%emt 0:09:21]} dxe5 {[%emt 0:00:14]} 6. Qxd8+ {[%emt
0:00:33]} Kxd8 {[%emt 0:00:03]} 7. Bg5+ {[%emt 0:00:41]} f6 {[%emt 0:00:05]} 8.
O-O-O+ {[%emt 0:00:06]} Bd7 {[%emt 0:00:12]} 9. Be3 {[%emt 0:00:21]} Kc8 {
[%emt 0:00:24]} 10. Nf3 {[%emt 0:04:31]} Be6 {[%emt 0:00:25]} 11. Nd2 {[%emt 0:
10:03]} Nd7 {[%emt 0:18:02]} 12. c5 {[%emt 0:11:26]} Bh6 {[%emt 0:01:47]} 13.
c6 {[%emt 0:01:23]} bxc6 {[%emt 0:00:14]} 14. Ba6+ {[%emt 0:00:07]} Kb8 {[%emt
0:01:02]} 15. Bxh6 {[%emt 0:00:24]} Nxh6 {[%emt 0:00:08]} 16. Nb3 {[%emt 0:03:
57]} Bxb3 {[%emt 0:05:15]} 17. Rxd7 {[%emt 0:00:15]} Be6 {[%emt 0:00:26]} 18.
Re7 {[%emt 0:00:28]} Bc8 {[%emt 0:00:48]} 19. Bxc8 {[%emt 0:00:52]} Kxc8 {
[%emt 0:01:41]} 20. Rd1 {[%emt 0:00:16]} Rd8 {[%emt 0:01:18]} 21. Rxd8+ {[%emt
0:01:25]} Kxd8 {[%emt 0:00:02]} 22. Rxh7 {[%emt 0:00:12]} Ng8 {[%emt 0:00:18]}
23. Na4 {[%emt 0:01:25]} Rc8 {[%emt 0:02:09]} 24. Nc5 {[%emt 0:00:20]} Ke8 {
[%emt 0:00:46]} 25. Ne6 {[%emt 0:03:12]} Ne7 {[%emt 0:00:24]} 26. Rh8+ {[%emt
0:00:52]} Kf7 {[%emt 0:02:33]} 27. Rxc8 {[%emt 0:00:33]} Nxc8 {[%emt 0:00:04]}
28. Nd8+ {[%emt 0:01:40]} Ke7 {[%emt 0:00:49]} 29. Nxc6+ {[%emt 0:00:07]} Kd6 {
[%emt 0:00:07]} 30. Nb4 {[%emt 0:00:35]} Kc5 {[%emt 0:01:26]} 31. Nd5 {[%emt 0:
01:46]} f5 {[%emt 0:00:29]} 32. Nxc7 {[%emt 0:00:14]} fxe4 {[%emt 0:00:08]} 33.
Kd2 {[%emt 0:00:55]} Nd6 {[%emt 0:02:33]} 34. Ke3 {[%emt 0:11:14]} Kc6 {[%emt
0:01:35]} 35. Ne6 {[%emt 0:03:27]} Kd5 {[%emt 0:00:36]} 36. Nf8 {[%emt 0:00:48]
} g5 {[%emt 0:01:38]} 37. Nh7 {[%emt 0:01:17]} Nf5+ {[%emt 0:01:58]} 38. Ke2 {
[%emt 0:03:03]} Nh4 {[%emt 0:01:33]} 39. Kf1 {[%emt 0:05:21]} Kd4 {[%emt 0:02:
09]} 40. Nxg5 {[%emt 0:01:24]} Kd3 {[%emt 0:00:23]} 41. g3 {[%emt 0:01:03]} Nf5
{[%emt 0:00:13]} 42. Nf7 {[%emt 0:02:58]} Kc2 {[%emt 0:01:40]} 43. Nxe5 {[%emt
0:00:14]} Kxb2 {[%emt 0:00:09]} 44. h4 {[%emt 0:00:31]} Kxa2 {[%emt 0:00:22]}
45. Nc6 {[%emt 0:00:06]} Kb3 {[%emt 0:00:36]} 46. Nxa7 {[%emt 0:00:11]} Kc3 {
[%emt 0:00:22]} 47. h5 {[%emt 0:00:41]} Kd2 {[%emt 0:03:30]} 48. Kg2 {[%emt 0:
02:15]} e3 {[%emt 0:02:49]} 49. fxe3 {[%emt 0:00:07]} Kxe3 {[%emt 0:00:05]} 50.
Kh3 {[%emt 0:01:08]} Kf3 {[%emt 0:02:14]} 51. g4 {[%emt 0:00:57]} Nh6 {[%emt 0:
00:38]} 52. g5 {[%emt 0:00:17]} Nf7 {[%emt 0:00:57]} 53. Kh4 {[%emt 0:30:09]}
Kf4 {[%emt 0:00:29]} 54. h6 {[%emt 0:08:46]} Nxg5 {[%emt 0:00:37]} 55. Kh5 {
[%emt 0:01:47]} Nf7 {[%emt 0:01:08]} 56. h7 {[%emt 0:00:13]} Kf5 {[%emt 0:00:
09]} 57. Nc8 {[%emt 0:01:39]} Kf6 {[%emt 0:00:10]} 58. Nd6 {[%emt 0:00:12]} Kg7
{[%emt 0:00:07]} 59. Nxf7 {[%emt 0:00:05]} Kxh7 {[%emt 0:00:04]} 1/2-1/2

[Event "Lithuanian Chess League 2021"]
[Site "Various cities"]
[Date "2021.05.14"]
[Round "5.17"]
[White "Juknis, Paulius"]
[Black "Likatavicius, Rapolas"]
[Result "1-0"]
[WhiteElo "2143"]
[BlackElo "1929"]
[PlyCount "93"]
[TimeControl "90/40+30:0"]
[WhiteClock "0:16:37"]
[BlackClock "0:14:18"]

1. d4 {[%emt 0:00:10]} d5 {[%emt 0:00:07]} 2. Bf4 {[%emt 0:00:47]} Nf6 {[%emt
0:00:12]} 3. e3 {[%emt 0:00:25]} c5 {[%emt 0:00:40]} 4. c3 {[%emt 0:00:57]} Nc6
{[%emt 0:03:34]} 5. Nd2 {[%emt 0:01:02]} e6 {[%emt 0:03:43]} 6. Ngf3 {[%emt 0:
01:00]} Bd6 {[%emt 0:00:47]} 7. Bg3 {[%emt 0:00:41]} O-O {[%emt 0:01:33]} 8.
Bd3 {[%emt 0:02:44]} b6 {[%emt 0:08:26]} 9. Qe2 {[%emt 0:01:40]} Bb7 {[%emt 0:
06:30]} 10. Rd1 {[%emt 0:00:54]} cxd4 {[%emt 0:18:29]} 11. exd4 {[%emt 0:00:30]
} Ne7 {[%emt 0:01:26]} 12. Bxd6 {[%emt 0:06:46]} Qxd6 {[%emt 0:00:08]} 13. Ne5
{[%emt 0:01:14]} Ng6 {[%emt 0:04:50]} 14. g3 {[%emt 0:01:01]} a6 {[%emt 0:12:
40]} 15. h4 {[%emt 0:03:39]} Nd7 {[%emt 0:03:43]} 16. Nxg6 {[%emt 0:29:54]}
fxg6 {[%emt 0:04:11]} 17. f4 {[%emt 0:02:07]} b5 {[%emt 0:00:44]} 18. a3 {
[%emt 0:03:16]} Nb6 {[%emt 0:07:57]} 19. O-O {[%emt 0:02:58]} Nc4 {[%emt 0:01:
02]} 20. Nf3 {[%emt 0:00:39]} a5 {[%emt 0:03:33]} 21. Ng5 {[%emt 0:01:41]} b4 {
[%emt 0:05:12]} 22. Bxc4 {[%emt 0:12:07]} dxc4 {[%emt 0:00:02]} 23. Qxe6+ {
[%emt 0:00:10]} Qxe6 {[%emt 0:00:22]} 24. Nxe6 {[%emt 0:00:05]} Rfe8 {[%emt 0:
03:42]} 25. Rde1 {[%emt 0:07:37]} bxa3 {[%emt 0:00:54]} 26. bxa3 {[%emt 0:00:
07]} Rab8 {[%emt 0:03:29]} 27. Nc5 {[%emt 0:03:05]} Rxe1 {[%emt 0:00:17]} 28.
Rxe1 {[%emt 0:00:04]} Bc6 {[%emt 0:01:40]} 29. Kf2 {[%emt 0:02:41]} Rb2+ {
[%emt 0:02:29]} 30. Re2 {[%emt 0:00:06]} Rb1 {[%emt 0:00:13]} 31. Re6 {[%emt 0:
01:19]} Rb2+ {[%emt 0:00:25]} 32. Ke3 {[%emt 0:00:31]} Bg2 {[%emt 0:01:24]} 33.
Ra6 {[%emt 0:08:35]} Rc2 {[%emt 0:00:12]} 34. Na4 {[%emt 0:00:18]} Ra2 {[%emt
0:01:06]} 35. Rxa5 {[%emt 0:00:39]} Rxa3 {[%emt 0:00:05]} 36. d5 {[%emt 0:00:
31]} Bxd5 {[%emt 0:00:42]} 37. Rxd5 {[%emt 0:00:08]} Rxa4 {[%emt 0:00:16]} 38.
Kd4 {[%emt 0:00:44]} Kf7 {[%emt 0:00:57]} 39. Rd7+ {[%emt 0:02:05]} Kf6 {[%emt
0:00:39]} 40. g4 {[%emt 0:00:51]} h5 {[%emt 0:01:33]} 41. Rd6+ {[%emt 0:06:08]}
Kf7 {[%emt 0:00:19]} 42. g5 {[%emt 0:07:17]} Ra1 {[%emt 0:02:34]} 43. Rd7+ {
[%emt 0:01:50]} Kf8 {[%emt 0:12:41]} 44. Kxc4 {[%emt 0:05:14]} Ra4+ {[%emt 0:
01:31]} 45. Kc5 {[%emt 0:00:20]} Rxf4 {[%emt 0:00:18]} 46. Rd4 {[%emt 0:00:06]}
Rf1 {[%emt 0:02:07]} 47. Re4 {[%emt 0:00:30]} 1-0

[Event "Lithuanian Chess League 2021"]
[Site "Various cities"]
[Date "2021.05.14"]
[Round "5.18"]
[White "Kuznecovas, Kevinas"]
[Black "Valantiejus, Vaidotas"]
[Result "1/2-1/2"]
[WhiteElo "1882"]
[BlackElo "2117"]
[PlyCount "83"]
[TimeControl "90/40+30:0"]
[WhiteClock "0:02:03"]
[BlackClock "0:00:42"]

1. e4 {[%emt 1:09:36]} c5 {[%emt 0:00:09]} 2. Nf3 {[%emt 0:00:07]} e6 {[%emt 0:
00:21]} 3. d3 {[%emt 0:01:49]} Nc6 {[%emt 0:00:54]} 4. g3 {[%emt 0:00:25]} d5 {
[%emt 0:04:43]} 5. Nbd2 {[%emt 0:00:13]} Bd6 {[%emt 0:00:54]} 6. Bg2 {[%emt 0:
00:16]} Nge7 {[%emt 0:00:18]} 7. O-O {[%emt 0:00:18]} O-O {[%emt 0:00:10]} 8.
Re1 {[%emt 0:00:39]} Qc7 {[%emt 0:04:09]} 9. Qe2 {[%emt 0:01:06]} f6 {[%emt 0:
00:56]} 10. h4 {[%emt 0:05:01]} Bd7 {[%emt 0:01:21]} 11. Nf1 {[%emt 0:01:21]}
Rae8 {[%emt 0:02:42]} 12. N1h2 {[%emt 0:08:06]} Kh8 {[%emt 0:03:54]} 13. h5 {
[%emt 0:03:47]} b5 {[%emt 0:04:51]} 14. Nh4 {[%emt 0:05:13]} Kg8 {[%emt 0:16:
27]} 15. c3 {[%emt 0:07:34]} b4 {[%emt 0:02:29]} 16. f4 {[%emt 0:12:41]} bxc3 {
[%emt 0:06:44]} 17. bxc3 {[%emt 0:02:07]} dxe4 {[%emt 0:11:45]} 18. dxe4 {
[%emt 0:03:56]} Rd8 {[%emt 0:00:56]} 19. N2f3 {[%emt 0:08:39]} Qa5 {[%emt 0:03:
11]} 20. Bb2 {[%emt 0:03:21]} c4 {[%emt 0:03:04]} 21. e5 {[%emt 0:04:17]} fxe5
{[%emt 0:05:53]} 22. fxe5 {[%emt 0:02:32]} Nxe5 {[%emt 0:01:09]} 23. Nxe5 {
[%emt 0:03:52]} Bxe5 {[%emt 0:00:03]} 24. Qxe5 {[%emt 0:00:09]} Qb6+ {[%emt 0:
00:04]} 25. Kh1 {[%emt 0:02:07]} Qxb2 {[%emt 0:00:07]} 26. h6 {[%emt 0:01:27]}
gxh6 {[%emt 0:02:16]} 27. Bh3 {[%emt 0:03:40]} Bc6+ {[%emt 0:10:14]} 28. Ng2 {
[%emt 0:00:26]} Rf7 {[%emt 0:02:17]} 29. Qxe6 {[%emt 0:01:15]} Bd7 {[%emt 0:03:
04]} 30. Qxh6 {[%emt 0:04:46]} Bxh3 {[%emt 0:00:16]} 31. Qxh3 {[%emt 0:00:01]}
Qxc3 {[%emt 0:01:12]} 32. Rac1 {[%emt 0:02:56]} Qd4 {[%emt 0:02:40]} 33. Qe6 {
[%emt 0:01:47]} Rd6 {[%emt 0:08:47]} 34. Qxc4 {[%emt 0:00:05]} Qxc4 {[%emt 0:
00:58]} 35. Rxc4 {[%emt 0:00:01]} Rd2 {[%emt 0:01:22]} 36. Ra4 {[%emt 0:05:16]}
Nf5 {[%emt 0:00:44]} 37. Kh2 {[%emt 0:01:04]} Nd4 {[%emt 0:00:32]} 38. Kh3 {
[%emt 0:00:51]} Nf3 {[%emt 0:00:40]} 39. Re8+ {[%emt 0:00:24]} Kg7 {[%emt 0:00:
36]} 40. Rg4+ {[%emt 0:03:15]} Kf6 {[%emt 0:00:28]} 41. Rf4+ {[%emt 0:01:35]}
Kg7 {[%emt 0:00:21]} 42. Rg4+ {[%emt 0:01:23]} 1/2-1/2

[Event "Lithuanian Chess League 2021"]
[Site "Various cities"]
[Date "2021.05.14"]
[Round "5.19"]
[White "Jankunas, Tomas"]
[Black "Posaskov, Nikita"]
[Result "1-0"]
[WhiteElo "2115"]
[BlackElo "1706"]
[PlyCount "83"]
[TimeControl "90/40+30:0"]
[WhiteClock "0:06:02"]
[BlackClock "0:01:27"]

1. e4 {[%emt 0:00:06]} c6 {[%emt 0:00:06]} 2. d4 {[%emt 0:02:23]} d5 {[%emt 0:
00:07]} 3. Nd2 {[%emt 0:00:05]} dxe4 {[%emt 0:00:05]} 4. Nxe4 {[%emt 0:00:05]}
Nf6 {[%emt 0:00:07]} 5. Nxf6+ {[%emt 0:04:06]} exf6 {[%emt 0:00:21]} 6. Nf3 {
[%emt 0:03:56]} Bd6 {[%emt 0:01:35]} 7. Be2 {[%emt 0:05:13]} O-O {[%emt 0:01:
14]} 8. O-O {[%emt 0:00:10]} Bf5 {[%emt 0:03:55]} 9. c4 {[%emt 0:08:45]} Na6 {
[%emt 0:02:53]} 10. Qb3 {[%emt 0:05:25]} Qd7 {[%emt 0:07:41]} 11. Be3 {[%emt 0:
08:23]} Nc7 {[%emt 0:08:13]} 12. Rfd1 {[%emt 0:04:08]} b5 {[%emt 0:08:34]} 13.
d5 {[%emt 0:16:02]} cxd5 {[%emt 0:42:26]} 14. cxb5 {[%emt 0:05:27]} Be4 {[%emt
0:01:54]} 15. Nd4 {[%emt 0:07:51]} Ne6 {[%emt 0:08:13]} 16. f3 {[%emt 0:00:46]}
Bg6 {[%emt 0:04:37]} 17. Nc6 {[%emt 0:00:57]} Nc7 {[%emt 0:03:05]} 18. Rac1 {
[%emt 0:05:22]} Rfe8 {[%emt 0:00:34]} 19. Bf1 {[%emt 0:01:01]} Qf5 {[%emt 0:02:
09]} 20. Bf2 {[%emt 0:00:44]} Qh5 {[%emt 0:01:15]} 21. Bg3 {[%emt 0:00:52]}
Bxg3 {[%emt 0:00:36]} 22. hxg3 {[%emt 0:00:05]} Qg5 {[%emt 0:00:38]} 23. g4 {
[%emt 0:02:06]} Qf4 {[%emt 0:00:48]} 24. Re1 {[%emt 0:03:35]} Rxe1 {[%emt 0:00:
51]} 25. Rxe1 {[%emt 0:00:05]} Qd6 {[%emt 0:00:25]} 26. a4 {[%emt 0:01:51]} Kf8
{[%emt 0:00:32]} 27. Qc3 {[%emt 0:05:30]} Ne6 {[%emt 0:00:29]} 28. Nd4 {[%emt
0:01:21]} Qb6 {[%emt 0:00:32]} 29. Rd1 {[%emt 0:00:14]} Re8 {[%emt 0:00:28]}
30. b4 {[%emt 0:01:08]} Qd6 {[%emt 0:00:36]} 31. a5 {[%emt 0:02:10]} Qg3 {
[%emt 0:00:26]} 32. Nxe6+ {[%emt 0:00:22]} fxe6 {[%emt 0:00:09]} 33. Qc5+ {
[%emt 0:00:29]} Re7 {[%emt 0:00:21]} 34. b6 {[%emt 0:00:39]} axb6 {[%emt 0:01:
04]} 35. Qxb6 {[%emt 0:00:10]} h5 {[%emt 0:00:28]} 36. a6 {[%emt 0:01:25]} Qc7
{[%emt 0:00:32]} 37. Qxc7 {[%emt 0:00:28]} Rxc7 {[%emt 0:00:04]} 38. gxh5 {
[%emt 0:00:12]} Be8 {[%emt 0:00:35]} 39. b5 {[%emt 0:00:12]} Rc2 {[%emt 0:00:
49]} 40. a7 {[%emt 0:01:26]} Ra2 {[%emt 0:00:05]} 41. b6 {[%emt 0:00:05]} Bc6 {
[%emt 0:00:04]} 42. Rc1 {[%emt 0:00:05]} 1-0

[Event "Lithuanian Chess League 2021"]
[Site "Various cities"]
[Date "2021.05.14"]
[Round "5.20"]
[White "Bandza, Rokas"]
[Black "Aleknavicius, Andrius"]
[Result "1/2-1/2"]
[WhiteElo "1817"]
[BlackElo "1986"]
[PlyCount "76"]
[TimeControl "90/40+30:0"]
[WhiteClock "0:01:15"]
[BlackClock "0:00:44"]

1. e4 {[%emt 0:00:03]} c5 {[%emt 0:00:16]} 2. c3 {[%emt 0:01:07]} Nf6 {[%emt 0:
01:09]} 3. e5 {[%emt 0:00:38]} Nd5 {[%emt 0:00:05]} 4. d4 {[%emt 0:01:23]} cxd4
{[%emt 0:03:19]} 5. cxd4 {[%emt 0:00:11]} d6 {[%emt 0:11:15]} 6. Nf3 {[%emt 0:
02:11]} Nc6 {[%emt 0:03:53]} 7. Bc4 {[%emt 0:03:39]} Nb6 {[%emt 0:07:11]} 8.
Bb5 {[%emt 0:04:53]} Bd7 {[%emt 0:00:27]} 9. Nc3 {[%emt 0:03:52]} e6 {[%emt 0:
03:57]} 10. O-O {[%emt 0:02:39]} d5 {[%emt 0:09:45]} 11. a3 {[%emt 0:07:36]}
Na5 {[%emt 0:02:23]} 12. Bd3 {[%emt 0:02:25]} Be7 {[%emt 0:01:37]} 13. b3 {
[%emt 0:09:18]} O-O {[%emt 0:08:00]} 14. Bb2 {[%emt 0:02:14]} f5 {[%emt 0:05:
09]} 15. exf6 {[%emt 0:03:11]} Bxf6 {[%emt 0:01:04]} 16. Re1 {[%emt 0:01:38]}
g6 {[%emt 0:04:32]} 17. Ne2 {[%emt 0:17:58]} Bg7 {[%emt 0:03:02]} 18. Bc3 {
[%emt 0:02:56]} Nc6 {[%emt 0:01:37]} 19. Qd2 {[%emt 0:02:35]} Qf6 {[%emt 0:07:
02]} 20. Rad1 {[%emt 0:13:54]} Nc8 {[%emt 0:04:49]} 21. b4 {[%emt 0:03:05]} a6
{[%emt 0:01:20]} 22. a4 {[%emt 0:01:16]} N6a7 {[%emt 0:02:46]} 23. Nc1 {[%emt
0:01:50]} Bxa4 {[%emt 0:00:37]} 24. Bc2 {[%emt 0:00:36]} Bxc2 {[%emt 0:00:34]}
25. Qxc2 {[%emt 0:00:02]} Nb5 {[%emt 0:01:48]} 26. Nd3 {[%emt 0:01:11]} b6 {
[%emt 0:02:10]} 27. Nde5 {[%emt 0:00:35]} Qe7 {[%emt 0:01:24]} 28. Bd2 {[%emt
0:03:39]} Ncd6 {[%emt 0:05:36]} 29. Ng5 {[%emt 0:06:34]} Bxe5 {[%emt 0:06:59]}
30. Rxe5 {[%emt 0:00:15]} Nc7 {[%emt 0:01:15]} 31. Rde1 {[%emt 0:00:18]} Nc4 {
[%emt 0:00:25]} 32. R5e2 {[%emt 0:01:36]} Rf6 {[%emt 0:00:30]} 33. h4 {[%emt 0:
00:20]} h6 {[%emt 0:00:36]} 34. Nf3 {[%emt 0:00:09]} Nxd2 {[%emt 0:00:26]} 35.
Qxd2 {[%emt 0:00:02]} Kg7 {[%emt 0:00:31]} 36. Ne5 {[%emt 0:00:36]} h5 {[%emt
0:00:29]} 37. Re3 {[%emt 0:00:39]} Kh7 {[%emt 0:00:37]} 38. Rg3 {[%emt 0:01:00]
} Rg8 {[%emt 0:00:21]} 1/2-1/2

[Event "Lithuanian Chess League 2021"]
[Site "Various cities"]
[Date "2021.05.14"]
[Round "5.21"]
[White "Kalinauskas, Vytautas"]
[Black "Zagorskis, Darius"]
[Result "0-1"]
[WhiteElo "1909"]
[BlackElo "2408"]
[PlyCount "68"]
[TimeControl "90/40+30:0"]
[WhiteClock "0:01:27"]
[BlackClock "0:14:26"]

1. e4 {[%emt 0:00:02]} c5 {[%emt 0:00:06]} 2. Ne2 {[%emt 0:01:08]} e6 {[%emt 0:
01:08]} 3. c3 {[%emt 0:00:34]} d5 {[%emt 0:02:38]} 4. exd5 {[%emt 0:00:36]}
Qxd5 {[%emt 0:00:07]} 5. d4 {[%emt 0:01:01]} Nf6 {[%emt 0:00:26]} 6. c4 {[%emt
0:03:40]} Qd8 {[%emt 0:04:20]} 7. Nbc3 {[%emt 0:02:26]} cxd4 {[%emt 0:04:42]}
8. Nxd4 {[%emt 0:01:02]} a6 {[%emt 0:02:00]} 9. Be3 {[%emt 0:04:07]} Be7 {
[%emt 0:00:54]} 10. Bd3 {[%emt 0:01:24]} Nbd7 {[%emt 0:07:40]} 11. O-O {[%emt
0:05:46]} O-O {[%emt 0:00:18]} 12. Qe2 {[%emt 0:09:37]} Ne5 {[%emt 0:03:45]}
13. Bc2 {[%emt 0:09:00]} Neg4 {[%emt 0:00:58]} 14. Rad1 {[%emt 0:16:42]} Qc7 {
[%emt 0:00:46]} 15. g3 {[%emt 0:15:42]} Nxe3 {[%emt 0:00:24]} 16. fxe3 {[%emt
0:02:00]} Nd7 {[%emt 0:17:22]} 17. Ne4 {[%emt 0:14:12]} g6 {[%emt 0:05:18]} 18.
Rf2 {[%emt 0:02:54]} b6 {[%emt 0:03:10]} 19. Rdf1 {[%emt 0:04:40]} Bb7 {[%emt
0:00:35]} 20. b3 {[%emt 0:01:00]} Rae8 {[%emt 0:04:50]} 21. Nc3 {[%emt 0:00:41]
} b5 {[%emt 0:01:55]} 22. Be4 {[%emt 0:00:53]} Bxe4 {[%emt 0:06:13]} 23. Nxe4 {
[%emt 0:00:03]} bxc4 {[%emt 0:00:08]} 24. bxc4 {[%emt 0:00:55]} Rc8 {[%emt 0:
02:13]} 25. c5 {[%emt 0:00:45]} Nxc5 {[%emt 0:10:41]} 26. Nxc5 {[%emt 0:00:22]}
Bxc5 {[%emt 0:00:04]} 27. Qxa6 {[%emt 0:00:09]} Qe5 {[%emt 0:02:36]} 28. Qd3 {
[%emt 0:01:02]} Rcd8 {[%emt 0:02:06]} 29. Rf4 {[%emt 0:00:27]} Qd5 {[%emt 0:01:
28]} 30. Qe4 {[%emt 0:01:01]} e5 {[%emt 0:00:28]} 31. Nf5 {[%emt 0:01:27]} exf4
{[%emt 0:02:18]} 32. Nh6+ {[%emt 0:00:11]} Kg7 {[%emt 0:00:07]} 33. Qxf4 {
[%emt 0:00:13]} Bxe3+ {[%emt 0:01:18]} 34. Qxe3 {[%emt 0:00:16]} Qd4 {[%emt 0:
00:05]} 0-1

[Event "Lithuanian Chess League 2021"]
[Site "Various cities"]
[Date "2021.05.14"]
[Round "5.22"]
[White "Brazdzionis, Andrius"]
[Black "Rudzkis, Vilius"]
[Result "1-0"]
[WhiteElo "2333"]
[BlackElo "1743"]
[PlyCount "55"]
[TimeControl "90/40+30:0"]
[WhiteClock "0:12:34"]
[BlackClock "0:16:12"]

1. d4 {[%emt 0:01:02]} Nf6 {[%emt 0:00:49]} 2. c4 {[%emt 0:00:25]} g6 {[%emt 0:
00:27]} 3. Nc3 {[%emt 0:00:21]} d5 {[%emt 0:00:31]} 4. Nf3 {[%emt 0:00:48]} Bg7
{[%emt 0:00:51]} 5. h4 {[%emt 0:00:07]} dxc4 {[%emt 0:04:59]} 6. e4 {[%emt 0:
00:16]} c5 {[%emt 0:00:46]} 7. d5 {[%emt 0:00:06]} b5 {[%emt 0:01:49]} 8. h5 {
[%emt 0:00:05]} O-O {[%emt 0:01:40]} 9. hxg6 {[%emt 0:00:05]} fxg6 {[%emt 0:00:
13]} 10. e5 {[%emt 0:00:06]} Ng4 {[%emt 0:00:41]} 11. d6 {[%emt 0:04:30]} e6 {
[%emt 0:01:27]} 12. Rxh7 {[%emt 0:00:20]} Rf5 {[%emt 0:01:27]} 13. Rh3 {[%emt
0:00:07]} Nd7 {[%emt 0:03:08]} 14. Nd5 {[%emt 0:05:51]} Bf8 {[%emt 0:15:10]}
15. Nc7 {[%emt 0:03:50]} Bb7 {[%emt 0:02:13]} 16. a4 {[%emt 0:20:52]} Ndxe5 {
[%emt 0:04:32]} 17. Nxa8 {[%emt 0:05:31]} Qxa8 {[%emt 0:08:24]} 18. Nxe5 {
[%emt 0:25:32]} Rxe5+ {[%emt 0:01:55]} 19. Be3 {[%emt 0:00:49]} Nf6 {[%emt 0:
11:30]} 20. Rg3 {[%emt 0:00:34]} Qe8 {[%emt 0:02:19]} 21. axb5 {[%emt 0:00:46]}
Qxb5 {[%emt 0:01:25]} 22. d7 {[%emt 0:08:10]} Nxd7 {[%emt 0:08:15]} 23. Rxg6+ {
[%emt 0:02:13]} Kf7 {[%emt 0:01:23]} 24. Rg5 {[%emt 0:04:42]} Qb4+ {[%emt 0:06:
55]} 25. Qd2 {[%emt 0:01:26]} Rd5 {[%emt 0:00:48]} 26. Qxb4 {[%emt 0:00:27]}
cxb4 {[%emt 0:00:09]} 27. Rxa7 {[%emt 0:01:49]} Bc6 {[%emt 0:03:57]} 28. Bxc4 {
[%emt 0:01:10]} 1-0

[Event "Lithuanian Chess League 2021"]
[Site "Various cities"]
[Date "2021.05.14"]
[Round "5.23"]
[White "Bazilius, Augustinas"]
[Black "Dambrauskas, Virginijus"]
[Result "1/2-1/2"]
[WhiteElo "1628"]
[BlackElo "2209"]
[PlyCount "37"]
[TimeControl "90/40+30:0"]
[WhiteClock "1:11:02"]
[BlackClock "0:26:12"]

1. d4 {[%emt 0:00:03]} d5 {[%emt 0:00:13]} 2. c4 {[%emt 0:01:13]} e6 {[%emt 0:
00:17]} 3. Nf3 {[%emt 0:00:03]} c6 {[%emt 0:00:08]} 4. g3 {[%emt 0:00:06]} Nd7
{[%emt 0:00:36]} 5. Bg2 {[%emt 0:00:39]} Ngf6 {[%emt 0:02:38]} 6. O-O {[%emt 0:
00:22]} Bd6 {[%emt 0:03:45]} 7. Nc3 {[%emt 0:00:09]} O-O {[%emt 0:00:22]} 8.
Nd2 {[%emt 0:00:13]} Bc7 {[%emt 0:14:24]} 9. e4 {[%emt 0:00:09]} dxe4 {[%emt 0:
02:22]} 10. Ndxe4 {[%emt 0:01:32]} Nxe4 {[%emt 0:03:36]} 11. Nxe4 {[%emt 0:00:
29]} b6 {[%emt 0:00:50]} 12. Qa4 {[%emt 0:13:18]} Bb7 {[%emt 0:13:53]} 13. Nc3
{[%emt 0:06:01]} a6 {[%emt 0:19:02]} 14. Bxc6 {[%emt 0:03:19]} b5 {[%emt 0:00:
15]} 15. cxb5 {[%emt 0:00:02]} axb5 {[%emt 0:03:20]} 16. Qxb5 {[%emt 0:00:07]}
Ba6 {[%emt 0:00:17]} 17. Qa4 {[%emt 0:00:53]} Bb7 {[%emt 0:06:49]} 18. Qb5 {
[%emt 0:00:13]} Ba6 {[%emt 0:00:29]} 19. Qa4 {[%emt 0:00:08]} 1/2-1/2

[Event "Lithuanian Chess League 2021"]
[Site "Various cities"]
[Date "2021.05.14"]
[Round "5.24"]
[White "Zaura, Vidmantas"]
[Black "Feofanov, Boris"]
[Result "1-0"]
[WhiteElo "2087"]
[BlackElo "1634"]
[PlyCount "75"]
[TimeControl "90/40+30:0"]
[WhiteClock "0:10:39"]
[BlackClock "0:00:46"]

1. Nf3 {[%emt 0:00:02]} Nf6 {[%emt 0:00:03]} 2. g3 {[%emt 0:00:06]} b6 {[%emt
0:02:06]} 3. Bg2 {[%emt 0:00:06]} Bb7 {[%emt 0:00:02]} 4. c4 {[%emt 0:00:20]}
c5 {[%emt 0:00:06]} 5. Nc3 {[%emt 0:00:11]} g6 {[%emt 0:01:38]} 6. O-O {[%emt
0:00:14]} Bg7 {[%emt 0:00:04]} 7. e3 {[%emt 0:00:16]} O-O {[%emt 0:00:12]} 8.
d4 {[%emt 0:00:09]} e6 {[%emt 0:06:37]} 9. d5 {[%emt 0:01:20]} exd5 {[%emt 0:
01:42]} 10. cxd5 {[%emt 0:00:11]} d6 {[%emt 0:00:50]} 11. e4 {[%emt 0:00:41]}
a6 {[%emt 0:03:26]} 12. a4 {[%emt 0:01:10]} Nbd7 {[%emt 0:07:42]} 13. Bf4 {
[%emt 0:02:19]} Qc7 {[%emt 0:01:17]} 14. Re1 {[%emt 0:01:15]} Nh5 {[%emt 0:00:
56]} 15. Bg5 {[%emt 0:02:59]} h6 {[%emt 0:01:29]} 16. Be3 {[%emt 0:05:50]} Rae8
{[%emt 0:06:41]} 17. Qc1 {[%emt 0:10:34]} Kh7 {[%emt 0:01:25]} 18. g4 {[%emt 0:
00:46]} Nhf6 {[%emt 0:00:23]} 19. g5 {[%emt 0:01:05]} hxg5 {[%emt 0:15:14]} 20.
Bxg5 {[%emt 0:03:02]} Nh5 {[%emt 0:03:05]} 21. Bh4 {[%emt 0:09:01]} Bh6 {[%emt
0:10:23]} 22. Ng5+ {[%emt 0:12:03]} Kg7 {[%emt 0:01:05]} 23. f4 {[%emt 0:01:05]
} Rh8 {[%emt 0:16:38]} 24. Ne2 {[%emt 0:06:46]} Ndf6 {[%emt 0:01:44]} 25. Ng3 {
[%emt 0:05:06]} Bc8 {[%emt 0:03:07]} 26. Qc3 {[%emt 0:01:14]} Kg8 {[%emt 0:05:
49]} 27. e5 {[%emt 0:03:35]} dxe5 {[%emt 0:01:27]} 28. fxe5 {[%emt 0:00:30]}
Bxg5 {[%emt 0:03:28]} 29. Bxg5 {[%emt 0:00:25]} Ng4 {[%emt 0:02:12]} 30. d6 {
[%emt 0:06:38]} Qb8 {[%emt 0:01:06]} 31. h3 {[%emt 0:00:45]} Nxg3 {[%emt 0:00:
49]} 32. Qxg3 {[%emt 0:00:17]} Nh6 {[%emt 0:00:24]} 33. Bc6 {[%emt 0:07:23]}
Nf5 {[%emt 0:01:16]} 34. Qd3 {[%emt 0:01:05]} Nd4 {[%emt 0:02:15]} 35. Bxe8 {
[%emt 0:06:03]} Rxh3 {[%emt 0:00:14]} 36. Re3 {[%emt 0:02:09]} Bf5 {[%emt 0:00:
27]} 37. Rxh3 {[%emt 0:01:24]} Qxe8 {[%emt 0:00:53]} 38. Bf6 {[%emt 0:00:46]}
1-0